[Event "Slovakian ECo-C Extraliga 2024-25"]
[Site "Slovakia"]
[Date "2024.11.24"]
[Round "2.7"]
[White "Varga, Zoltan"]
[Black "Striskova, Lucia"]
[Result "1-0"]
[Annotator "RC"]
[ECO "A28"]
[WhiteElo "2290"]
[BlackElo "2051"]
[PlyCount "103"]
[EventDate "2024.09.12"]
[EventType "team-tourn"]
[EventCountry "SVK"]
[SourceTitle "playchess.com"]
[Source "ChessBase"]
[SourceQuality "1"]
[TimeControl "5400+30"]

1. c4 {[%emt 0:00:04]} Nf6 {[%emt 0:01:09]} 2. Nc3 {[%emt 0:00:09]} e5 {[%emt 0:00:53]} 3. Nf3 {[%emt 0:00:31]} Nc6 {[%emt 0:00:10]} 4. a3 {[%emt 0:00:09]} d5 {[%emt 0:03:36]} 5. cxd5 {[%emt 0:00:29]} Nxd5 {[%emt 0:00:09]} 6. Qc2 {[%emt 0:00:19]} Be7 {[%emt 0:02:42]} 7. e4 {[%emt 0:11:04]} Nf4 {[%emt 0:19:58]} 8. d4 {[%emt 0:01:08]} exd4 {[%emt 0:04:17]} 9. Bxf4 {[%emt 0:00:17]} dxc3 {[%emt 0:00:04]} 10. Rd1 {[%emt 0:00:16]} Bd7 {[%emt 0:00:07]} 11. Qxc3 {[%emt 0:04:35]} O-O {[%emt 0:06:45]} 12. Bc4 {[%emt 0:00:18]} Qc8 {[%emt 0:01:37]} 13. O-O {[%emt 0:00:08]} a6 {[%emt 0:06:33]} 14. Bd5 {[%emt 0:04:34]} Bf6 {[%emt 0:01:45]} 15. e5 {[%emt 0:02:11]} Be7 {[%emt 0:00:08]} 16. Rc1 {[%emt 0:04:17]} Bd8 {[%emt 0:03:55]} 17. Rfd1 {[%emt 0:03:10]} Ne7 {[%emt 0:09:47]} 18. Be4 {[%emt 0:11:35]} Ng6 {[%emt 0:04:50]} 19. Bg3 {[%emt 0:04:07]} c6 {[%emt 0:03:33]} 20. Qd3 {[%emt 0:02:45]} Be6 {[%emt 0:02:20]} 21. h3 {[%emt 0:07:46]} Be7 {[%emt 0:01:14]} 22. Nd4 {[%emt 0:01:08]} Rd8 {[%emt 0:00:17]} 23. Qf3 {[%emt 0:00:42]} Bd5 {[%emt 0:04:54]} 24. Bxd5 {[%emt 0:02:55]} Rxd5 {[%emt 0:00:15]} 25. Qxd5 {[%emt 0:00:08]} cxd5 {[%emt 0:00:13]} 26. Rxc8+ {[%emt 0:00:02]} Rxc8 {[%emt 0:00:18]} 27. Nf5 {[%emt 0:00:02]} Rd8 {[%emt 0:03:27]} 28. Nd6 {[%emt 0:04:30]} Nxe5 {[%emt 0:05:58]} 29. Nxb7 {[%emt 0:00:30]} Rd7 {[%emt 0:00:05]} 30. Bxe5 {[%emt 0:00:22]} Rxb7 {[%emt 0:01:11]} 31. Rxd5 {[%emt 0:00:03]} f6 {[%emt 0:00:10]} 32. Bc3 {[%emt 0:00:56]} Kf7 {[%emt 0:00:17]} 33. f4 {[%emt 0:00:47]} Rb5 {[%emt 0:01:52]} 34. Rxb5 {[%emt 0:01:15]} axb5 {[%emt 0:00:06]} 35. f5 {[%emt 0:00:10]} Bc5+ {[%emt 0:00:20]} 36. Kf1 {[%emt 0:03:39]} Ke7 {[%emt 0:00:21]} 37. Ke2 {[%emt 0:00:06]} Kd6 {[%emt 0:00:05]} 38. Kd3 {[%emt 0:00:19]} Kd5 {[%emt 0:00:08]} 39. g4 {[%emt 0:00:02]} Bd6 {[%emt 0:03:44]} 40. Bd2 {[%emt 0:03:42]} Be7 {[%emt 0:04:04]} 41. Bc1 {[%emt 0:01:39]} g6 {[%emt 0:03:49]} 42. fxg6 {[%emt 0:03:03]} hxg6 {[%emt 0:00:08]} 43. b3 {[%emt 0:00:01]} f5 {[%emt 0:01:33]} 44. a4 {[%emt 0:08:04]} bxa4 {[%emt 0:02:13]} 45. bxa4 {[%emt 0:00:05]} Bd8 {[%emt 0:00:00]} 46. gxf5 {[%emt 0:00:00]} gxf5 {[%emt 0:00:00]} 47. Bd2 {[%emt 0:00:00]} Ke5 {[%emt 0:00:00]} 48. a5 {[%emt 0:00:00]} f4 {[%emt 0:00:00]} 49. a6 {[%emt 0:00:00]} Bb6 {[%emt 0:00:00]} 50. Bc3+ {[%emt 0:00:00]} Kd5 {[%emt 0:00:00]} 51. h4 {[%emt 0:00:00]} f3 {[%emt 0:00:00]} 52. h5 {[%emt 0:00:00]} 1-0

[Event "Slovakian ECo-C Extraliga 2024-25"]
[Site "Slovakia"]
[Date "2024.11.24"]
[Round "2.7"]
[White "Vojtek, Vladimir"]
[Black "Kantorik, Marian"]
[Result "1-0"]
[Annotator "RC"]
[ECO "B22"]
[WhiteElo "2245"]
[BlackElo "2165"]
[PlyCount "113"]
[EventDate "2024.09.12"]
[EventType "team-tourn"]
[EventCountry "SVK"]
[SourceTitle "playchess.com"]
[Source "ChessBase"]
[SourceQuality "1"]
[TimeControl "5400+30"]

1. e4 {[%emt 0:00:05]} c5 {[%emt 0:00:14]} 2. c3 {[%emt 0:00:28]} d6 {[%emt 0:01:15]} 3. d4 {[%emt 0:00:21]} Nf6 {[%emt 0:01:29]} 4. dxc5 {[%emt 0:02:15]} Nc6 {[%emt 0:00:22]} 5. f3 {[%emt 0:09:11]} dxc5 {[%emt 0:02:05]} 6. Qxd8+ {[%emt 0:00:48]} Nxd8 {[%emt 0:00:11]} 7. Be3 {[%emt 0:00:08]} e5 {[%emt 0:01:05]} 8. Na3 {[%emt 0:00:34]} Be7 {[%emt 0:04:09]} 9. O-O-O {[%emt 0:12:17]} O-O {[%emt 0:02:44]} 10. Ne2 {[%emt 0:11:57]} Be6 {[%emt 0:02:36]} 11. Ng3 {[%emt 0:01:22]} g6 {[%emt 0:13:25]} 12. Bh6 {[%emt 0:07:48]} Re8 {[%emt 0:00:07]} 13. Bb5 {[%emt 0:00:10]} Nc6 {[%emt 0:00:08]} 14. Nc4 {[%emt 0:08:00]} Red8 {[%emt 0:15:55]} 15. b3 {[%emt 0:07:35]} Bxc4 {[%emt 0:04:11]} 16. Bxc4 {[%emt 0:00:50]} Na5 {[%emt 0:01:03]} 17. Be2 {[%emt 0:02:13]} Rxd1+ {[%emt 0:03:51]} 18. Rxd1 {[%emt 0:00:13]} Rd8 {[%emt 0:00:05]} 19. Rxd8+ {[%emt 0:04:09]} Bxd8 {[%emt 0:00:08]} 20. Nf1 {[%emt 0:00:08]} Be7 {[%emt 0:02:47]} 21. Ne3 {[%emt 0:06:04]} Bf8 {[%emt 0:03:16]} 22. Bg5 {[%emt 0:00:25]} Kg7 {[%emt 0:00:58]} 23. Nd5 {[%emt 0:04:08]} Nd7 {[%emt 0:09:08]} 24. Kc2 {[%emt 0:05:05]} Bd6 {[%emt 0:05:18]} 25. Bb5 {[%emt 0:03:09]} Nc6 {[%emt 0:04:42]} 26. Kd3 {[%emt 0:02:29]} f6 {[%emt 0:06:58]} 27. Bh4 {[%emt 0:01:14]} a6 {[%emt 0:01:51]} 28. Bxc6 {[%emt 0:00:54]} bxc6 {[%emt 0:00:05]} 29. Ne3 {[%emt 0:00:07]} Kf7 {[%emt 0:00:34]} 30. g4 {[%emt 0:02:52]} Ke6 {[%emt 0:00:33]} 31. Bf2 {[%emt 0:00:31]} Bc7 {[%emt 0:04:16]} 32. Nc4 {[%emt 0:00:50]} Bd8 {[%emt 0:00:25]} 33. h3 {[%emt 0:00:21]} Bc7 {[%emt 0:00:10]} 34. Nb2 {[%emt 0:00:14]} f5 {[%emt 0:05:37]} 35. Na4 {[%emt 0:01:08]} Bd6 {[%emt 0:00:11]} 36. Be3 {[%emt 0:03:40]} fxe4+ {[%emt 0:00:24]} 37. fxe4 {[%emt 0:00:18]} h5 {[%emt 0:01:45]} 38. g5 {[%emt 0:02:14]} Be7 {[%emt 0:02:46]} 39. h4 {[%emt 0:00:27]} Kd6 {[%emt 0:00:29]} 40. Kc4 {[%emt 0:00:29]} Kc7 {[%emt 0:00:12]} 41. Bxc5 {[%emt 0:02:22]} Bd8 {[%emt 0:00:00]} 42. b4 {[%emt 0:00:00]} Kb7 {[%emt 0:00:00]} 43. Bd6 {[%emt 0:00:00]} Nb6+ {[%emt 0:00:00]} 44. Nxb6 {[%emt 0:00:00]} Bxb6 {[%emt 0:00:00]} 45. Bc5 {[%emt 0:00:00]} Bc7 {[%emt 0:00:00]} 46. a4 {[%emt 0:00:00]} Bb8 {[%emt 0:00:00]} 47. Kd3 {[%emt 0:00:00]} Bc7 {[%emt 0:00:00]} 48. Bf2 {[%emt 0:00:00]} Bd6 {[%emt 0:00:00]} 49. Kc2 {[%emt 0:00:00]} Bc7 {[%emt 0:00:00]} 50. Bc5 {[%emt 0:00:00]} Bb8 {[%emt 0:00:00]} 51. Kb3 {[%emt 0:00:00]} Bc7 {[%emt 0:00:00]} 52. c4 {[%emt 0:00:00]} a5 {[%emt 0:00:00]} 53. Be7 {[%emt 0:00:00]} axb4 {[%emt 0:00:00]} 54. c5 {[%emt 0:02:28]} Kc8 {[%emt 0:00:00]} 55. Kxb4 {[%emt 0:00:41]} Kb7 {[%emt 0:00:00]} 56. Bd6 {[%emt 0:00:13]} Bb8 {[%emt 0:04:00]} 57. a5 {[%emt 0:00:52]} 1-0

[Event "Slovakian ECo-C Extraliga 2024-25"]
[Site "Slovakia"]
[Date "2024.11.24"]
[Round "2.8"]
[White "Elias, David"]
[Black "Urhegyi, Marton"]
[Result "1/2-1/2"]
[Annotator "RC"]
[ECO "A50"]
[WhiteElo "2255"]
[BlackElo "2227"]
[PlyCount "35"]
[EventDate "2024.09.12"]
[EventType "team-tourn"]
[EventCountry "SVK"]
[SourceTitle "playchess.com"]
[Source "ChessBase"]
[SourceQuality "1"]
[TimeControl "5400+30"]

1. d4 {[%emt 0:00:02]} Nf6 {[%emt 0:00:19]} 2. c4 {[%emt 0:00:04]} b6 {[%emt 0:01:03]} 3. Nc3 {[%emt 0:00:34]} Bb7 {[%emt 0:00:28]} 4. Qc2 {[%emt 0:07:13]} d5 {[%emt 0:01:24]} 5. cxd5 {[%emt 0:04:18]} Nxd5 {[%emt 0:00:08]} 6. e4 {[%emt 0:01:54]} Nxc3 {[%emt 0:00:08]} 7. bxc3 {[%emt 0:00:06]} e6 {[%emt 0:04:11]} 8. Nf3 {[%emt 0:01:49]} Be7 {[%emt 0:02:48]} 9. Bb5+ {[%emt 0:04:21]} c6 {[%emt 0:01:49]} 10. Bd3 {[%emt 0:00:04]} c5 {[%emt 0:06:37]} 11. O-O {[%emt 0:05:35]} cxd4 {[%emt 0:04:11]} 12. Bb5+ {[%emt 0:12:30]} Bc6 {[%emt 0:02:35]} 13. Bxc6+ {[%emt 0:01:29]} Nxc6 {[%emt 0:00:04]} 14. cxd4 {[%emt 0:00:39]} Rc8 {[%emt 0:06:06]} 15. Bb2 {[%emt 0:04:35]} O-O {[%emt 0:04:43]} 16. Qa4 {[%emt 0:00:15]} Na5 {[%emt 0:06:36]} 17. Rac1 {[%emt 0:04:56]} Qe8 {[%emt 0:02:13]} 18. Qxe8 {[%emt 0:02:04]} 1/2-1/2

[Event "Slovakian ECo-C Extraliga 2024-25"]
[Site "Slovakia"]
[Date "2024.11.24"]
[Round "2.8"]
[White "Zetocha, Adrian"]
[Black "Bango, Lukas"]
[Result "1/2-1/2"]
[Annotator "ChessBase"]
[ECO "D32"]
[WhiteElo "2186"]
[BlackElo "2216"]
[PlyCount "61"]
[EventDate "2024.09.12"]
[EventType "team-tourn"]
[EventCountry "SVK"]
[SourceTitle "playchess.com"]
[Source "ChessBase"]
[SourceQuality "1"]
[TimeControl "5400+30"]

1. d4 {[%emt 0:00:24]} d5 {[%emt 0:00:07]} 2. c4 {[%emt 0:01:36]} e6 {[%emt 0:00:11]} 3. Nc3 {[%emt 0:00:21]} c5 {[%emt 0:00:16]} 4. cxd5 {[%emt 0:03:09]} cxd4 {[%emt 0:00:17]} 5. Qa4+ {[%emt 0:05:36]} Bd7 {[%emt 0:00:10]} 6. Qxd4 {[%emt 0:00:06]} exd5 {[%emt 0:00:10]} 7. Qxd5 {[%emt 0:08:46]} Nc6 {[%emt 0:00:16]} 8. e3 {[%emt 0:16:50]} Nf6 {[%emt 0:00:09]} 9. Qb3 {[%emt 0:01:16]} Bd6 {[%emt 0:05:00]} 10. Nf3 {[%emt 0:04:22]} O-O {[%emt 0:00:09]} 11. Be2 {[%emt 0:01:56]} a6 {[%emt 0:10:46]} 12. O-O {[%emt 0:02:17]} Be6 {[%emt 0:07:01]} 13. Qc2 {[%emt 0:04:09]} Nb4 {[%emt 0:03:53]} 14. Qb1 {[%emt 0:01:32]} Rc8 {[%emt 0:04:27]} 15. e4 {[%emt 0:06:19]} Qc7 {[%emt 0:05:35]} 16. Bg5 {[%emt 0:00:40]} Ng4 {[%emt 0:03:12]} 17. h3 {[%emt 0:02:10]} Ne5 {[%emt 0:00:26]} 18. Rc1 {[%emt 0:05:19]} Qa5 {[%emt 0:04:42]} 19. Bh4 {[%emt 0:05:27]} Nxf3+ {[%emt 0:10:24]} 20. Bxf3 {[%emt 0:00:09]} g5 {[%emt 0:09:52]} 21. Bg3 {[%emt 0:04:04]} Bxg3 {[%emt 0:00:11]} 22. fxg3 {[%emt 0:00:02]} Qe5 {[%emt 0:02:27]} 23. Kh2 {[%emt 0:02:07]} g4 {[%emt 0:02:54]} 24. hxg4 {[%emt 0:08:27]} Rc6 {[%emt 0:02:50]} 25. Nd5 {[%emt 0:02:55]} Bxd5 {[%emt 0:02:34]} 26. Rxc6 {[%emt 0:00:01]} Bxc6 {[%emt 0:03:26]} 27. a3 {[%emt 0:00:02]} Qd6 {[%emt 0:07:42]} 28. axb4 {[%emt 0:02:07]} Qh6+ {[%emt 0:01:03]} 29. Kg1 {[%emt 0:00:06]} Qe3+ {[%emt 0:00:03]} 30. Kh2 {[%emt 0:00:07]} Qh6+ {[%emt 0:00:31]} 31. Kg1 {[%emt 0:00:06]} 1/2-1/2

[Event "Slovakian ECo-C Extraliga 2024-25"]
[Site "Slovakia"]
[Date "2024.11.24"]
[Round "2.8"]
[White "Pericka, Tomas"]
[Black "Zvarik, Martin"]
[Result "1/2-1/2"]
[Annotator "NA RC"]
[ECO "C25"]
[WhiteElo "2035"]
[BlackElo "2149"]
[PlyCount "38"]
[EventDate "2024.09.12"]
[EventType "team-tourn"]
[EventCountry "SVK"]
[SourceTitle "playchess.com"]
[Source "ChessBase"]
[SourceQuality "1"]
[TimeControl "5400+30"]

1. e4 {[%emt 0:01:30]} e5 {[%emt 0:01:47]} 2. Nc3 {[%emt 0:02:59]} d6 {[%emt 0:05:56]} 3. Bc4 {[%emt 0:02:06]} Be6 {[%emt 0:04:41]} 4. d3 {[%emt 0:05:25]} Nf6 {[%emt 0:05:15]} 5. Be3 {[%emt 0:05:02]} Nc6 {[%emt 0:08:32]} 6. Nh3 {[%emt 0:03:52]} d5 {[%emt 0:06:33]} 7. exd5 {[%emt 0:01:39]} Nxd5 {[%emt 0:00:08]} 8. Nxd5 {[%emt 0:03:13]} Bxd5 {[%emt 0:00:05]} 9. Bxd5 {[%emt 0:00:26]} Qxd5 {[%emt 0:00:06]} 10. O-O {[%emt 0:01:24]} O-O-O {[%emt 0:10:06]} 11. f4 {[%emt 0:07:53]} Bc5 {[%emt 0:11:01]} 12. Qf3 {[%emt 0:06:13]} Qxf3 {[%emt 0:05:04]} 13. Rxf3 {[%emt 0:00:18]} Nd4 {[%emt 0:00:06]} 14. Bxd4 {[%emt 0:03:47]} Bxd4+ {[%emt 0:02:41]} 15. Kf1 {[%emt 0:00:55]} Bxb2 {[%emt 0:03:00]} 16. Rb1 {[%emt 0:00:30]} Bd4 {[%emt 0:00:34]} 17. fxe5 {[%emt 0:03:41]} Bxe5 {[%emt 0:00:13]} 18. Ng5 {[%emt 0:02:51]} Rd7 {[%emt 0:07:59]} 19. Nxf7 {[%emt 0:01:41]} Re8 {[%emt 0:01:39]} 1/2-1/2

[Event "Slovakian ECo-C Extraliga 2024-25"]
[Site "Slovakia"]
[Date "2024.11.24"]
[Round "2.8"]
[White "Benci, Jozef"]
[Black "Csonka, Attila Istvan"]
[Result "0-1"]
[Annotator "RC"]
[ECO "A05"]
[WhiteElo "1977"]
[BlackElo "2271"]
[PlyCount "164"]
[EventDate "2024.09.12"]
[EventType "team-tourn"]
[EventCountry "SVK"]
[SourceTitle "playchess.com"]
[Source "ChessBase"]
[SourceQuality "1"]
[TimeControl "5400+30"]

1. Nf3 {[%emt 0:00:32]} Nf6 {[%emt 0:00:40]} 2. c4 {[%emt 0:00:09]} e6 {[%emt 0:00:04]} 3. g3 {[%emt 0:00:09]} d5 {[%emt 0:00:08]} 4. b3 {[%emt 0:00:15]} c5 {[%emt 0:00:18]} 5. e3 {[%emt 0:12:15]} Nc6 {[%emt 0:02:20]} 6. Bb2 {[%emt 0:13:57]} Be7 {[%emt 0:02:52]} 7. Bg2 {[%emt 0:06:21]} O-O {[%emt 0:00:39]} 8. O-O {[%emt 0:01:04]} dxc4 {[%emt 0:04:00]} 9. bxc4 {[%emt 0:00:14]} Qc7 {[%emt 0:00:08]} 10. Nc3 {[%emt 0:03:20]} a6 {[%emt 0:00:46]} 11. Qe2 {[%emt 0:04:03]} Rd8 {[%emt 0:03:02]} 12. Rfd1 {[%emt 0:05:13]} e5 {[%emt 0:06:08]} 13. h3 {[%emt 0:03:46]} h6 {[%emt 0:01:30]} 14. d3 {[%emt 0:02:16]} Be6 {[%emt 0:00:40]} 15. e4 {[%emt 0:16:44]} Nd4 {[%emt 0:04:36]} 16. Nxd4 {[%emt 0:02:07]} cxd4 {[%emt 0:00:36]} 17. Nd5 {[%emt 0:01:48]} Bxd5 {[%emt 0:00:11]} 18. exd5 {[%emt 0:00:34]} Bd6 {[%emt 0:00:16]} 19. Rdc1 {[%emt 0:01:52]} b6 {[%emt 0:01:14]} 20. a4 {[%emt 0:00:15]} Rab8 {[%emt 0:00:40]} 21. Qd2 {[%emt 0:04:49]} a5 {[%emt 0:01:46]} 22. Ba3 {[%emt 0:00:59]} Bxa3 {[%emt 0:00:46]} 23. Rxa3 {[%emt 0:00:01]} Qd6 {[%emt 0:00:12]} 24. Rb3 {[%emt 0:00:56]} Nd7 {[%emt 0:00:08]} 25. Rbb1 {[%emt 0:02:32]} Nc5 {[%emt 0:00:28]} 26. Qc2 {[%emt 0:00:18]} f5 {[%emt 0:01:30]} 27. Re1 {[%emt 0:01:01]} Rf8 {[%emt 0:00:16]} 28. Qe2 {[%emt 0:02:21]} Rbe8 {[%emt 0:00:22]} 29. Qd1 {[%emt 0:02:24]} Qf6 {[%emt 0:02:44]} 30. f3 {[%emt 0:01:00]} Qg6 {[%emt 0:03:29]} 31. Kh2 {[%emt 0:00:39]} f4 {[%emt 0:05:21]} 32. g4 {[%emt 0:00:00]} Nxd3 {[%emt 0:00:19]} 33. Qc2 {[%emt 0:01:34]} Rf6 {[%emt 0:00:07]} 34. Red1 {[%emt 0:00:08]} Nc5 {[%emt 0:00:31]} 35. Qxg6 {[%emt 0:01:23]} Rxg6 {[%emt 0:00:06]} 36. Ra1 {[%emt 0:00:35]} Rd6 {[%emt 0:01:41]} 37. h4 {[%emt 0:02:13]} Kf7 {[%emt 0:00:57]} 38. Ra3 {[%emt 0:01:12]} g5 {[%emt 0:02:09]} 39. h5 {[%emt 0:00:28]} Re7 {[%emt 0:06:38]} 40. Re1 {[%emt 0:02:17]} Kf6 {[%emt 0:03:08]} 41. Kg1 {[%emt 0:03:28]} Na6 {[%emt 0:09:59]} 42. Bf1 {[%emt 0:00:00]} Rc7 {[%emt 0:00:00]} 43. Rb3 {[%emt 0:00:00]} Nc5 {[%emt 0:00:00]} 44. Ra3 {[%emt 0:00:00]} d3 {[%emt 0:00:00]} 45. Rc1 {[%emt 0:00:00]} e4 {[%emt 0:00:00]} 46. fxe4 {[%emt 0:00:00]} d2 {[%emt 0:00:00]} 47. Rd1 {[%emt 0:00:00]} Nxe4 {[%emt 0:00:00]} 48. Bd3 {[%emt 0:00:00]} Ke5 {[%emt 0:00:00]} 49. Kg2 {[%emt 0:00:00]} f3+ {[%emt 0:00:00]} 50. Kxf3 {[%emt 0:00:00]} Rf6+ {[%emt 0:00:00]} 51. Ke2 {[%emt 0:00:00]} Rf2+ {[%emt 0:00:00]} 52. Ke3 {[%emt 0:00:00]} Rf4 {[%emt 0:00:00]} 53. Be2 {[%emt 0:00:00]} Nd6 {[%emt 0:00:00]} 54. Rc3 {[%emt 0:00:58]} Nxc4+ {[%emt 0:02:58]} 55. Bxc4 {[%emt 0:00:11]} Rcxc4 {[%emt 0:00:12]} 56. Rxc4 {[%emt 0:00:17]} Rxc4 {[%emt 0:00:08]} 57. Rxd2 {[%emt 0:00:04]} Rxg4 {[%emt 0:01:15]} 58. d6 {[%emt 0:00:55]} Re4+ {[%emt 0:00:05]} 59. Kf3 {[%emt 0:01:36]} Rf4+ {[%emt 0:01:22]} 60. Kg3 {[%emt 0:00:21]} Rf8 {[%emt 0:00:10]} 61. Rb2 {[%emt 0:01:39]} Rd8 {[%emt 0:04:45]} 62. Rxb6 {[%emt 0:02:26]} Rxd6 {[%emt 0:00:11]} 63. Rb5+ {[%emt 0:00:28]} Rd5 {[%emt 0:00:29]} 64. Rb6 {[%emt 0:00:22]} Rd3+ {[%emt 0:00:45]} 65. Kg2 {[%emt 0:01:42]} Rd6 {[%emt 0:00:14]} 66. Rb5+ {[%emt 0:00:22]} Kf4 {[%emt 0:00:06]} 67. Rxa5 {[%emt 0:00:31]} Rd2+ {[%emt 0:00:27]} 68. Kf1 {[%emt 0:00:42]} Kg4 {[%emt 0:00:30]} 69. Ra8 {[%emt 0:02:49]} Kxh5 {[%emt 0:00:34]} 70. a5 {[%emt 0:00:30]} Ra2 {[%emt 0:00:16]} 71. a6 {[%emt 0:00:13]} Kg4 {[%emt 0:00:05]} 72. a7 {[%emt 0:00:46]} h5 {[%emt 0:00:06]} 73. Kg1 {[%emt 0:01:12]} h4 {[%emt 0:00:32]} 74. Rb8 {[%emt 0:01:17]} Rxa7 {[%emt 0:00:08]} 75. Rb4+ {[%emt 0:00:06]} Kh5 {[%emt 0:00:18]} 76. Kg2 {[%emt 0:00:26]} Ra2+ {[%emt 0:00:21]} 77. Kg1 {[%emt 0:00:25]} h3 {[%emt 0:00:15]} 78. Rb3 {[%emt 0:00:32]} Kh4 {[%emt 0:00:10]} 79. Rb4+ {[%emt 0:00:16]} g4 {[%emt 0:00:12]} 80. Rb8 {[%emt 0:00:28]} Ra1+ {[%emt 0:00:28]} 81. Kf2 {[%emt 0:00:05]} g3+ {[%emt 0:00:20]} 82. Kf3 {[%emt 0:00:04]} Rf1+ {[%emt 0:00:06]} 0-1